fUST/lending_fUST_20250925
["ID","MTS","AMOUNT","RATE_DAILY","PERIOD"]
[387651728,1758798643472,-480.0,0.00022362,2]
[387651729,1758798643482,-480.0,0.00022362,2]
[387651730,1758798643491,-480.0,0.00022362,2]
[387651731,1758798643501,-2874.04,0.00022364,2]
[387651732,1758798643511,-1101.9,0.00022364,2]
[387651733,1758798643520,-672.35,0.00022365,2]
[387651734,1758798643530,-301.21846447,0.00022365,2]
[387651735,1758798643539,-2116.10938524,0.00022417,2]
[387651736,1758798643549,-480.0,0.00022636,2]
[387651737,1758798643559,-480.0,0.00022636,2]
[387651738,1758798643568,-480.0,0.00022636,2]
[387651739,1758798643578,-2874.04,0.00022638,2]
[387651740,1758798643587,-1101.9,0.00022638,2]
[387651741,1758798643596,-672.35,0.00022639,2]
[387651742,1758798643607,-150.0,0.00022707,2]
[387651743,1758798643618,-999.424,0.00022904,2]
[387651744,1758798643627,-219.262105,0.00022909,7]
[387651745,1758798643636,-435.496888,0.00022909,7]
[387651746,1758798643645,-151.0,0.00022909,7]
[387651747,1758798643656,-435.496888,0.00022909,7]
[387651748,1758798643665,-160.059737,0.00022909,7]
[387651749,1758798643674,-435.496888,0.00022909,7]
[387651750,1758798643686,-151.0,0.00022909,7]
[387651751,1758798643704,-435.496888,0.00022909,7]
[387651752,1758798643713,-151.0,0.00022909,7]
[387651753,1758798643722,-151.0,0.00022909,7]
[387651754,1758798643732,-151.0,0.00022909,7]
[387651755,1758798643742,-151.0,0.00022909,7]
[387651756,1758798643752,-151.0,0.00022909,7]
[387651757,1758798643762,-151.0,0.00022909,7]
[387651758,1758798643771,-151.0,0.00022909,7]
[387651759,1758798643780,-182.994205,0.00022909,7]
[387651760,1758798643790,-151.0,0.00022909,7]
[387651761,1758798643799,-480.0,0.0002291,2]
[387651762,1758798643809,-480.0,0.0002291,2]
[387651763,1758798643819,-480.0,0.0002291,2]
[387651765,1758798643828,-2874.04,0.00022912,2]
[387651767,1758798643837,-1101.9,0.00022912,2]
[387651769,1758798643847,-672.35,0.00022913,2]
[387651771,1758798643856,-772.82291128,0.00023116,2]
[387651773,1758798643865,-480.0,0.00023184,2]
[387651775,1758798643875,-480.0,0.00023184,2]
[387651776,1758798643884,-480.0,0.00023184,2]
[387651777,1758798643894,-151.0,0.00023186,7]
[387651778,1758798643904,-151.0,0.00023186,7]
[387651779,1758798643914,-151.0,0.00023186,7]
[387651780,1758798643923,-151.0,0.00023186,7]
[387651781,1758798643932,-151.0,0.00023186,7]
[387651784,1758798643942,-151.0,0.00023186,7]
[387651785,1758798643951,-151.0,0.00023186,7]
[387651787,1758798643960,-155.210128,0.00023186,7]
[387651788,1758798643969,-151.0,0.00023186,7]
[387651789,1758798643979,-151.0,0.00023186,7]
[387651790,1758798643988,-151.0,0.00023186,7]
[387651791,1758798643998,-151.0,0.00023186,7]
[387651792,1758798644007,-151.0,0.00023186,7]
[387651793,1758798644016,-151.0,0.00023186,7]
[387651794,1758798644025,-151.0,0.00023186,7]
[387651795,1758798644035,-151.0,0.00023186,7]
[387651796,1758798644044,-151.0,0.00023186,7]
[387651797,1758798644053,-151.0,0.00023186,7]
[387651798,1758798644063,-2874.04,0.00023186,2]
[387651799,1758798644073,-1101.9,0.00023186,2]
[387651801,1758798644082,-672.35,0.00023187,2]
[387651803,1758798644092,-746.62,0.00023287,2]
[387651804,1758798644102,-287.73340321,0.00023418,2]
[387651805,1758798644112,-369.25478094,0.00023458,2]
[387651806,1758798644122,-480.0,0.00023458,2]
[387651807,1758798644131,-480.0,0.00023458,2]
[387651808,1758798644141,-2874.04,0.0002346,2]
[387651809,1758798644150,-1101.9,0.0002346,2]
[387651810,1758798644160,-672.35,0.00023461,2]
[387651811,1758798644169,-151.0,0.00023549,4]
[387651812,1758798644179,-480.0,0.00023732,2]
[387651813,1758798644188,-480.0,0.00023732,2]
[387651814,1758798644198,-2874.04,0.00023734,2]
[387651815,1758798644207,-1101.9,0.00023734,2]
[387651816,1758798644217,-672.35,0.00023735,2]
[387651817,1758798644226,-3000.0,0.000238,2]
[387651818,1758798644236,-3000.0,0.0002381,2]
[387651819,1758798644246,-3000.0,0.0002382,2]
[387651820,1758798644256,-3000.0,0.0002383,2]
[387651821,1758798644266,-3000.0,0.0002384,2]
[387651822,1758798644275,-3000.0,0.0002385,2]
[387651823,1758798644286,-3000.0,0.0002386,2]
[387651824,1758798644295,-3000.0,0.0002387,2]
[387651825,1758798644305,-3000.0,0.0002388,2]
[387651826,1758798644314,-3000.0,0.0002389,2]
[387651827,1758798644324,-3000.0,0.000239,2]
[387651828,1758798644333,-3000.0,0.0002391,2]
[387651829,1758798644341,-3000.0,0.0002392,2]
[387651830,1758798644351,-3000.0,0.0002393,2]
[387651831,1758798644360,-3000.0,0.0002394,2]
[387651832,1758798644370,-3000.0,0.0002395,2]
[387651833,1758798644380,-3000.0,0.0002396,2]
[387651834,1758798644389,-3000.0,0.0002397,2]
[387651835,1758798644399,-3000.0,0.0002398,2]
[387651836,1758798644408,-3000.0,0.0002399,2]
[387651837,1758798644417,-3000.0,0.00024,2]
[387651838,1758798644426,-348.58887483,0.00024,7]
[387651839,1758798644435,-480.0,0.00024006,2]
[387651840,1758798644445,-480.0,0.00024006,2]
[387651841,1758798644454,-2874.04,0.00024008,2]
[387651842,1758798644464,-1101.9,0.00024008,2]
[387651843,1758798644473,-672.35,0.00024009,2]
[387651844,1758798644483,-3000.0,0.0002401,2]
[387651845,1758798644492,-3000.0,0.0002402,2]
[387651846,1758798644501,-3000.0,0.0002403,2]
[387651847,1758798644511,-3000.0,0.0002404,2]
[387651848,1758798644520,-3000.0,0.0002405,2]
[387651849,1758798644530,-3000.0,0.0002406,2]
[387651850,1758798644539,-3000.0,0.0002407,2]
[387651851,1758798644548,-3000.0,0.0002408,2]
[387651852,1758798644558,-3000.0,0.0002409,2]
[387651853,1758798644567,-3000.0,0.000241,2]
[387651854,1758798644576,-3000.0,0.0002411,2]
[387651855,1758798644585,-3000.0,0.0002412,2]
[387651856,1758798644593,-3000.0,0.0002413,2]
[387651857,1758798644602,-4512.711316,0.0002414,2]
[387651858,1758798644616,-772.82291128,0.00024187,2]
[387651859,1758798644625,-480.0,0.0002428,2]
[387651860,1758798644635,-480.0,0.0002428,2]
[387651861,1758798644723,-2874.04,0.00024282,2]
[387651862,1758798644732,-1101.9,0.00024282,2]
[387651863,1758798644742,-672.35,0.00024283,2]
[387651864,1758798644751,-151.0,0.000244,10]
[387651865,1758798644760,-443.0,0.00024417,2]
[387651866,1758798644769,-168.0,0.00024433,2]
[387651867,1758798644778,-480.0,0.00024554,2]
[387651868,1758798644787,-480.0,0.00024554,2]
[387651869,1758798644796,-2874.04,0.00024556,2]
[387651870,1758798644806,-1101.9,0.00024556,2]
[387651871,1758798644815,-672.35,0.00024557,2]
[387651872,1758798644824,-150.0,0.00024599,2]
[387651873,1758798644833,-443.0,0.00024632,7]
[387651874,1758798644842,-200.0,0.00024658,15]
[387651875,1758798644851,-198.0,0.00024658,2]
[387651876,1758798644860,-443.0,0.00024676,2]
[387651877,1758798644870,-1320.55139996,0.000248,2]
[387651878,1758798644878,-287.73340321,0.000248,2]
[387651879,1758798644888,-607.45967117,0.00024828,2]
[387651880,1758798644897,-520.17118694,0.00024828,2]
[387651881,1758798644907,-2874.04,0.0002483,2]
[387651882,1758798644916,-1101.9,0.0002483,2]
[387651883,1758798644925,-672.35,0.00024831,2]
[387651884,1758798644934,-500.0,0.00024873,2]
[387651885,1758798644944,-500.0,0.00024873,2]
[387651886,1758798644953,-504.83976007,0.00024873,2]
[387651887,1758798644963,-238.57457338,0.00024873,2]
[387651888,1758798644972,-500.0,0.00024873,2]
[387651889,1758798644982,-500.0,0.00024873,2]
[387651890,1758798644991,-43814.77199451,0.00024873,2]
[387651891,1758798645001,-151.0,0.00024873,7]
[387651892,1758798645012,-151.0,0.00024873,7]
[387651893,1758798645022,-151.0,0.00024873,7]
[387651894,1758798645031,-151.0,0.00024873,7]
[387651895,1758798645041,-151.0,0.00024873,7]
[387651896,1758798645051,-151.0,0.00024873,7]
[387651897,1758798645061,-151.0,0.00024873,7]
[387651898,1758798645070,-151.0,0.00024873,7]
[387651899,1758798645079,-151.0,0.00024873,7]
[387651900,1758798645089,-151.0,0.00024873,7]
[387651901,1758798645098,-151.0,0.00024873,7]
[387651902,1758798645107,-151.0,0.00024873,7]
[387651903,1758798645116,-151.0,0.00024873,7]
[387651904,1758798645127,-151.0,0.00024873,7]
[387651905,1758798645136,-151.0,0.00024873,7]
[387651906,1758798645145,-151.0,0.00024873,7]
[387651907,1758798645154,-151.0,0.00024873,7]
[387651908,1758798645164,-151.0,0.00024873,7]
[387651909,1758798645173,-151.0,0.00024873,7]
[387651910,1758798645182,-151.0,0.00024873,7]
[387651911,1758798645191,-151.0,0.00024873,7]
[387651912,1758798645201,-194.409939,0.00024873,7]
[387651913,1758798645210,-194.409939,0.00024873,7]
[387651914,1758798645220,-194.409939,0.00024873,7]
[387651915,1758798645229,-194.409939,0.00024873,7]
[387651916,1758798645238,-229.462912,0.00024873,7]
[387651917,1758798645248,-229.462912,0.00024873,7]
[387651918,1758798645258,-229.462912,0.00024873,7]
[387651919,1758798645267,-229.462912,0.00024873,7]
[387651920,1758798645276,-151.0,0.00024873,7]
[387651921,1758798645285,-151.0,0.00024873,7]
[387651922,1758798645294,-151.0,0.00024873,7]
[387651923,1758798645303,-151.0,0.00024873,7]
[387651924,1758798645312,-151.0,0.00024873,7]
[387651925,1758798645321,-151.0,0.00024873,7]
[387651926,1758798645330,-151.0,0.00024873,7]
[387651927,1758798645339,-151.0,0.00024873,7]
[387651928,1758798645348,-151.0,0.00024873,7]
[387651929,1758798645357,-252.112038,0.00024873,7]
[387651930,1758798645367,-151.0,0.00024873,7]
[387651931,1758798645376,-755.352103,0.00024873,7]
[387651932,1758798645385,-755.352103,0.00024873,7]
[387651933,1758798645394,-151.0,0.00024873,7]
[387651934,1758798645403,-755.352103,0.00024873,7]
[387651935,1758798645413,-152.472814,0.00024873,7]
[387651936,1758798645422,-755.352103,0.00024873,7]
[387651937,1758798645430,-313.771529,0.00024873,7]
[387651938,1758798645440,-313.771529,0.00024873,7]
[387651939,1758798645449,-313.771529,0.00024873,7]
[387651940,1758798645459,-313.771529,0.00024873,7]
[387651941,1758798645468,-151.0,0.00024873,7]
[387651942,1758798645478,-151.0,0.00024873,7]
[387651943,1758798645487,-151.0,0.00024873,7]
[387651944,1758798645496,-216.968045,0.00024873,7]
[387651945,1758798645506,-152.570141,0.00024873,7]
[387651946,1758798645516,-151.0,0.00024873,7]
[387651947,1758798645525,-151.0,0.00024873,7]
[387651948,1758798645535,-151.0,0.00024873,7]
[387651949,1758798645544,-151.0,0.00024873,7]
[387651950,1758798645555,-151.0,0.00024873,7]
[387651951,1758798645564,-250.129471,0.00024873,7]
[387651952,1758798645574,-151.0,0.00024873,7]
[387651953,1758798645584,-151.0,0.00024873,7]
[387651954,1758798645593,-151.0,0.00024873,7]
[387651955,1758798645602,-153.552444,0.00024873,7]
[387651956,1758798645617,-151.0,0.00024873,7]
[387651957,1758798645627,-151.0,0.00024873,7]
[387651958,1758798645636,-299.729472,0.00024873,7]
[387651959,1758798645646,-299.729472,0.00024873,7]
[387651960,1758798645657,-299.729472,0.00024873,7]
[387651961,1758798645667,-299.729472,0.00024873,7]
[387651962,1758798645676,-151.0,0.00024873,7]
[387651963,1758798645688,-151.0,0.00024873,7]
[387651964,1758798645699,-151.0,0.00024873,7]
[387651965,1758798645708,-151.0,0.00024873,7]
[387651966,1758798645719,-1514.259175,0.00024873,7]
[387651967,1758798645729,-1514.259175,0.00024873,7]
[387651968,1758798645739,-1514.259175,0.00024873,7]
[387651969,1758798645748,-1514.259175,0.00024873,7]
[387651970,1758798645758,-151.0,0.00024873,7]
[387651971,1758798645767,-685.957336,0.00024873,7]
[387651972,1758798645777,-151.0,0.00024873,7]
[387651973,1758798645787,-685.957336,0.00024873,7]
[387651974,1758798645797,-151.0,0.00024873,7]
[387651975,1758798645807,-685.957336,0.00024873,7]
[387651976,1758798645816,-151.0,0.00024873,7]
[387651977,1758798645825,-685.957336,0.00024873,7]
[387651978,1758798645835,-151.0,0.00024873,7]
[387651979,1758798645844,-151.0,0.00024873,7]
[387651980,1758798645853,-151.0,0.00024873,7]
[387651981,1758798645863,-153.14851591,0.00024873,2]
[387651982,1758798645872,-151.0,0.00024873,7]
[387651983,1758798645881,-235.869179,0.00024873,7]
[387651984,1758798645891,-235.869179,0.00024873,7]
[387651985,1758798645900,-235.869179,0.00024873,7]
[387651986,1758798645910,-235.869179,0.00024873,7]
[387651987,1758798645919,-151.0,0.00024873,7]
[387651988,1758798645929,-151.0,0.00024873,7]
[387651989,1758798645938,-668.591666,0.00024873,7]
[387651990,1758798645948,-668.591666,0.00024873,7]
[387651991,1758798645957,-668.591666,0.00024873,7]
[387651992,1758798645967,-151.0,0.00024873,7]
[387651993,1758798645976,-151.0,0.00024873,7]
[387651994,1758798645985,-151.0,0.00024873,7]
[387651995,1758798645995,-668.591666,0.00024873,7]
[387651996,1758798646005,-151.0,0.00024873,7]
[387651997,1758798646014,-151.0,0.00024873,7]
[387651998,1758798646024,-151.0,0.00024873,7]
[387651999,1758798646033,-151.0,0.00024873,7]
[387652000,1758798646042,-151.0,0.00024873,7]
[387652001,1758798646052,-217.785718,0.00024873,7]
[387652002,1758798646062,-151.0,0.00024873,7]
[387652003,1758798646072,-217.785718,0.00024873,7]
[387652004,1758798646087,-151.0,0.00024873,7]
[387652005,1758798646096,-217.785718,0.00024873,7]
[387652006,1758798646107,-235.323079,0.00024873,7]
[387652007,1758798646116,-217.785718,0.00024873,7]
[387652008,1758798646126,-151.0,0.00024873,7]
[387652009,1758798646136,-333.661411,0.00024873,7]
[387652010,1758798646146,-333.661411,0.00024873,7]
[387652011,1758798646156,-159.508238,0.00024873,7]
[387652012,1758798646165,-333.661411,0.00024873,7]
[387652013,1758798646175,-333.661411,0.00024873,7]
[387652014,1758798646185,-151.0,0.00024873,7]
[387652015,1758798646194,-175.743956,0.00024873,7]
[387652016,1758798646204,-151.0,0.00024873,7]
[387652017,1758798646213,-175.743956,0.00024873,7]
[387652018,1758798646223,-151.0,0.00024873,7]
[387652019,1758798646232,-175.743956,0.00024873,7]
[387652020,1758798646242,-159.611425,0.00024873,7]
[387652021,1758798646251,-175.743956,0.00024873,7]
[387652023,1758798646261,-151.0,0.00024873,7]
[387652025,1758798646270,-151.0,0.00024873,7]
[387652027,1758798646279,-159.611425,0.00024873,7]
[387652028,1758798646289,-151.0,0.000249,7]
[387652029,1758798646298,-151.0,0.000249,7]
[387652030,1758798646308,-151.0,0.000249,7]
[387652031,1758798646317,-151.0,0.000249,7]
[387652032,1758798646327,-287.333021,0.000249,7]
[387652033,1758798646337,-287.333021,0.000249,7]
[387652034,1758798646347,-287.333021,0.000249,7]
[387652035,1758798646356,-287.333021,0.000249,7]
[387652036,1758798646365,-228.630361,0.000249,7]
[387652037,1758798646375,-228.630361,0.000249,7]
[387652038,1758798646384,-228.630361,0.000249,7]
[387652039,1758798646394,-228.630361,0.000249,7]
[387652040,1758798646403,-151.0,0.000249,7]
[387652041,1758798646413,-151.0,0.000249,7]
[387652042,1758798646422,-151.0,0.000249,7]
[387652043,1758798646431,-151.0,0.000249,7]
[387652044,1758798646441,-151.0,0.000249,7]
[387652045,1758798646450,-151.0,0.000249,7]
[387652046,1758798646460,-151.0,0.000249,7]
[387652047,1758798646470,-151.0,0.000249,7]
[387652048,1758798646480,-151.0,0.000249,7]
[387652049,1758798646490,-151.0,0.000249,7]
[387652050,1758798646499,-151.0,0.000249,7]
[387652051,1758798646509,-151.0,0.000249,7]
[387652052,1758798646518,-151.0,0.000249,7]
[387652053,1758798646527,-151.0,0.000249,7]
[387652054,1758798646536,-151.0,0.000249,7]
[387652055,1758798646545,-151.0,0.000249,7]
[387652056,1758798646555,-211.616309,0.000249,7]
[387652057,1758798646565,-151.0,0.000249,7]
[387652058,1758798646574,-151.0,0.000249,7]
[387652059,1758798646583,-151.0,0.000249,7]
[387652060,1758798646592,-151.0,0.000249,7]
[387652061,1758798646601,-151.0,0.000249,7]
[387652062,1758798646615,-151.0,0.000249,7]
[387652063,1758798646624,-151.0,0.000249,7]
[387652064,1758798646633,-151.0,0.000249,7]
[387652065,1758798646643,-151.0,0.000249,7]
[387652066,1758798646653,-435.496888,0.000249,7]
[387652067,1758798646663,-151.0,0.000249,7]
[387652068,1758798646754,-435.496888,0.000249,7]
[387652069,1758798646763,-435.496888,0.000249,7]
[387652070,1758798646773,-151.0,0.000249,7]
[387652071,1758798646783,-435.496888,0.000249,7]
[387652072,1758798646792,-151.0,0.000249,7]
[387652073,1758798646802,-151.0,0.000249,7]
[387652074,1758798646812,-151.0,0.000249,7]
[387652075,1758798646821,-154.855749,0.000249,7]
[387652076,1758798646831,-160.0,0.000249,7]
[387652077,1758798646840,-151.0,0.000249,7]
[387652078,1758798646850,-151.0,0.000249,7]
[387652079,1758798646859,-151.0,0.000249,7]
[387652080,1758798646869,-151.0,0.000249,7]
[387652081,1758798646880,-151.0,0.000249,7]
[387652082,1758798646889,-151.0,0.000249,7]
[387652083,1758798646898,-151.0,0.000249,7]
[387652084,1758798646908,-151.0,0.000249,7]
[387652085,1758798646918,-177.320552,0.000249,7]
[387652086,1758798646927,-151.0,0.000249,7]
[387652087,1758798646937,-151.0,0.000249,7]
[387652088,1758798646946,-292.048966,0.000249,7]
[387652089,1758798646955,-151.0,0.000249,7]
[387652090,1758798646965,-151.0,0.000249,7]
[387652091,1758798646974,-182.924131,0.000249,7]
[387652092,1758798646984,-151.0,0.000249,7]
[387652093,1758798646994,-151.0,0.000249,7]
[387652094,1758798647004,-151.0,0.000249,7]
[387652095,1758798647015,-151.0,0.000249,7]
[387652096,1758798647024,-151.0,0.000249,7]
[387652097,1758798647034,-151.0,0.000249,7]
[387652098,1758798647044,-152.419463,0.000249,7]
[387652099,1758798647053,-151.0,0.000249,7]
[387652100,1758798647062,-151.0,0.000249,7]
[387652101,1758798647072,-151.0,0.000249,7]
[387652102,1758798647081,-194.409939,0.000249,7]
[387652103,1758798647091,-194.409939,0.000249,7]
[387652104,1758798647101,-194.409939,0.000249,7]
[387652105,1758798647110,-194.409939,0.000249,7]
[387652106,1758798647120,-229.462912,0.000249,7]
[387652107,1758798647129,-229.462912,0.000249,7]
[387652108,1758798647139,-229.462912,0.000249,7]
[387652109,1758798647148,-229.462912,0.000249,7]
[387652110,1758798647157,-151.0,0.000249,7]
[387652111,1758798647166,-151.0,0.000249,7]
[387652112,1758798647176,-151.0,0.000249,7]
[387652113,1758798647185,-151.0,0.000249,7]
[387652114,1758798647195,-151.0,0.000249,7]
[387652115,1758798647204,-151.0,0.000249,7]
[387652117,1758798647212,-151.0,0.000249,7]
[387652118,1758798647222,-151.0,0.000249,7]
[387652119,1758798647232,-151.0,0.000249,7]
[387652120,1758798647241,-151.0,0.000249,7]
[387652121,1758798647250,-755.352103,0.000249,7]
[387652122,1758798647261,-755.352103,0.000249,7]
[387652123,1758798647271,-151.0,0.000249,7]
[387652124,1758798647279,-755.352103,0.000249,7]
[387652125,1758798647289,-755.352103,0.000249,7]
[387652126,1758798647298,-313.771529,0.000249,7]
[387652127,1758798647307,-313.771529,0.000249,7]
[387652128,1758798647316,-313.771529,0.000249,7]
[387652129,1758798647325,-313.771529,0.000249,7]
[387652130,1758798647334,-151.0,0.000249,7]
[387652131,1758798647344,-151.0,0.000249,7]
[387652132,1758798647354,-151.0,0.000249,7]
[387652133,1758798647363,-151.0,0.000249,7]
[387652134,1758798647373,-151.0,0.000249,7]
[387652135,1758798647382,-211188.09246323,0.000249,2]
[387652136,1758798647481,-20200.00000067,0.000249,2]
[387652137,1758798647492,-1401.21430455,0.000249,2]
[387652138,1758798647504,-19190.44195619,0.000249,2]
[387652189,1758798649673,-0.01179394,0.00024873,7]
[387652192,1758798649690,-150.98820606,0.00024873,7]
[387652194,1758798649700,-168.62046,0.00024873,7]
[387652196,1758798649709,-159.611425,0.00024873,7]
[387652198,1758798649719,-168.62046,0.00024873,7]
[387652200,1758798649729,-8558.74403288,0.000249,2]
[387652202,1758798649744,-359.99275684,0.000249,2]
[387652228,1758798649982,-288.89125231,0.00019349,2]
[387652230,1758798649991,-500.0,0.00019349,2]
[387652232,1758798650000,-500.0,0.00019349,2]
[387652234,1758798650011,-500.0,0.00019349,2]
[387652236,1758798650021,-366.70720067,0.00019349,2]
[387652238,1758798650030,-500.0,0.00019349,2]
[387652240,1758798650039,-500.0,0.00019349,2]
[387652242,1758798650048,-159.611425,0.00024873,7]
[387652243,1758798650057,-168.62046,0.00024873,7]
[387652245,1758798650066,-168.62046,0.00024873,7]
[387652247,1758798650076,-36487.54920252,0.000249,2]
[387652252,1758798650114,-4497.25253306,0.000249,2]
[387652255,1758798650129,-6696.31009928,0.000249,2]
[387652257,1758798650142,-17182.00000001,0.000249,2]
[387652261,1758798650172,-2139.04,0.0002489,10]
[387652263,1758798650182,-860.96,0.000249,2]
[387652267,1758798650208,-588.905,0.000249,2]
[387652542,1758799554315,-401.60789148,0.000193,2]
[387652543,1758799554344,-4434.88890663,0.000193,2]
[387652544,1758799554390,-327.01640378,0.000193,2]
[387652546,1758799564004,-244.96,0.00019338,3]
[387652547,1758799564041,-395.77,0.00019338,3]
[387652548,1758799564074,-696.08,0.00019341,3]
[387652549,1758799564108,-1200.0,0.00019343,2]
[387652550,1758799564141,-300.0,0.00019343,2]
[387652551,1758799564172,-300.0,0.00019344,2]
[387652552,1758799564202,-300.0,0.00019344,2]
[387652553,1758799564234,-300.0,0.00019344,2]
[387652554,1758799564267,-300.0,0.00019344,2]
[387652555,1758799564301,-500.0,0.00019345,2]
[387652556,1758799564337,-426.39,0.00019345,2]
[387652557,1758799564499,-73.61,0.00019345,2]
[387652558,1758799582220,-483.34132093,0.00019345,2]
[387652559,1758799582250,-264.16910213,0.00019345,2]
[387652560,1758799582281,-500.0,0.00019345,2]
[387652561,1758799582312,-500.0,0.00019345,2]
[387652562,1758799582343,-154.01983669,0.00019345,2]
[387652563,1758799582372,-256.84822781,0.00019345,2]
[387652564,1758799582402,-500.0,0.00019345,2]
[387652565,1758799582433,-500.0,0.00019345,2]
[387652566,1758799582463,-500.0,0.00019345,2]
[387652567,1758799582494,-500.0,0.00019345,2]
[387652568,1758799582522,-402.56799479,0.00019346,2]
[387652569,1758799582553,-391.40107446,0.00019346,2]
[387652570,1758799582727,-95.31488638,0.00019346,2]
[387652572,1758799625104,-492.94539787,0.00019345,2]
[387652573,1758799625126,-300.0,0.00019346,2]
[387652574,1758799625147,-486.38902683,0.00019347,2]
[387652575,1758799625168,-480.0,0.00019347,2]
[387652576,1758799625189,-211.42827909,0.00019347,2]
[387652577,1758799625210,-563.78683149,0.00019347,2]
[387652578,1758799625232,-480.0,0.00019347,2]
[387652579,1758799625253,-480.0,0.00019347,2]
[387652580,1758799625273,-480.0,0.00019347,2]
[387652581,1758799625294,-502.9907,0.00019347,2]
[387652582,1758799625316,-480.0,0.00019347,2]
[387652583,1758799625339,-296.03500493,0.00019347,2]
[387652584,1758799625361,-500.0,0.00019347,2]
[387652585,1758799625383,-500.0,0.00019347,2]
[387652586,1758799625405,-500.0,0.00019347,2]
[387652587,1758799625427,-500.0,0.00019347,2]
[387652588,1758799625448,-500.0,0.00019347,2]
[387652589,1758799625468,-41.52243636,0.00019347,2]
[387652605,1758799832313,-162.13920003,0.00019248,2]
[387652607,1758799832324,-3174.60354028,0.000193,2]
[387652609,1758799832334,-1200.0,0.00019344,2]
[387652611,1758799832345,-471.9198103,0.00019345,2]
[387652613,1758799832354,-480.0,0.00019345,2]
[387652615,1758799832363,-480.0,0.00019345,2]
[387652617,1758799832373,-300.0,0.00019345,2]
[387652618,1758799832383,-300.0,0.00019345,2]
[387652619,1758799832392,-300.0,0.00019345,2]
[387652620,1758799832402,-480.0,0.00019345,2]
[387652622,1758799832411,-1200.0,0.00019346,2]
[387652624,1758799832422,-611.52335537,0.00019346,2]
[387652626,1758799832431,-480.0,0.00019346,2]
[387652628,1758799832441,-480.0,0.00019346,2]
[387652629,1758799832451,-480.0,0.00019346,2]
[387652630,1758799832463,-480.0,0.00019346,2]
[387652631,1758799832473,-564.44633765,0.00019346,2]
[387652632,1758799832483,-480.0,0.00019346,2]
[387652633,1758799832493,-480.0,0.00019346,2]
[387652634,1758799832502,-481.9797365,0.00019346,2]
[387652635,1758799832512,-421.34813249,0.00019346,2]
[387652636,1758799832522,-492.2396621,0.00019346,2]
[387652637,1758799832532,-480.0,0.00019346,2]
[387652638,1758799832542,-294.89109297,0.00019346,2]
[387652639,1758799832554,-438.47756364,0.00019347,2]
[387652641,1758799832564,-355.47953589,0.00019347,2]
[387652643,1758799832577,-500.0,0.00019347,2]
[387652645,1758799832592,-500.0,0.00019347,2]
[387652647,1758799832602,-500.0,0.00019347,2]
[387652649,1758799832611,-500.0,0.00019347,2]
[387652651,1758799832621,-500.0,0.00019347,2]
[387652653,1758799832631,-600.0,0.00019347,2]
[387652655,1758799832640,-480.0,0.00019347,2]
[387652656,1758799832649,-480.0,0.00019347,2]